bitfinex/quotes_SOLUSD_20251119
["timestamp","ask_amount","ask_price","bid_price","bid_amount"]
[1763563584276,1.78,137.68,137.67,0.2]
[1763563584806,2.48,137.68,137.67,0.2]
[1763563585504,12.64383875,137.68,137.63,0.2]
[1763563585668,10.16383875,137.66,137.63,0.2]
[1763563585998,0.7,137.67,137.63,0.2]
[1763563586206,10.16383875,137.64,137.63,0.2]
[1763563586502,11.94383875,137.64,137.63,0.2]
[1763563586702,12.64383875,137.64,137.63,0.2]
[1763563588907,2.48,137.64,137.63,0.2]
[1763563589112,12.64383875,137.64,137.63,0.2]
[1763563589776,10.86383875,137.64,137.63,0.2]
[1763563589978,12.64383875,137.64,137.63,0.2]
[1763563592611,32.59650519,137.64,137.63,0.2]
[1763563592996,50.71746519,137.64,137.6,0.2]
[1763563593193,9.78882769,137.6,137.59,0.2]
[1763563593408,21.73266644,137.6,137.51,0.2]
[1763563593712,10.16383875,137.54,137.51,0.2]
[1763563593925,10.16383875,137.52,137.51,0.2]
[1763563594209,9.78882769,137.58,137.51,0.2]
[1763563594210,28.60978769,137.58,137.51,0.2]
[1763563594384,10.16383875,137.52,137.51,0.2]
[1763563594579,11.94383875,137.52,137.51,0.2]
[1763563594821,1.78,137.52,137.51,0.2]
[1763563596087,11.94383875,137.52,137.51,0.2]
[1763563596485,1.78,137.52,137.51,0.2]
[1763563596688,11.94383875,137.52,137.51,0.2]
[1763563597227,12.64383875,137.52,137.51,0.2]
[1763563597812,2.48,137.52,137.48,0.2]
[1763563598023,11.94383875,137.51,137.48,0.2]
[1763563598229,10.16383875,137.5,137.48,0.2]
[1763563599032,9.78882769,137.62,137.48,6.97783519]
[1763563599336,6.12783519,137.5,137.48,0.2]
[1763563599614,1.78,137.5,137.48,0.2]
[1763563600103,6.12783519,137.49,137.48,0.2]
[1763563600285,6.82783519,137.49,137.48,0.2]
[1763563600490,1.78,137.5,137.48,0.2]
[1763563600691,6.12783519,137.49,137.48,0.2]
[1763563600997,0.7,137.52,137.48,0.2]
[1763563601315,7.90783519,137.51,137.48,0.2]
[1763563601505,0.7,137.52,137.48,0.2]
[1763563601506,7.90783519,137.52,137.48,0.2]
[1763563601715,6.12783519,137.5,137.48,0.2]
[1763563601892,6.82783519,137.49,137.48,0.2]
[1763563602092,6.12783519,137.49,137.48,0.2]
[1763563602714,6.82783519,137.49,137.48,0.2]
[1763563603202,8.60783519,137.49,137.48,0.2]
[1763563603525,1.78,137.49,137.48,0.2]
[1763563603726,8.60783519,137.49,137.48,0.2]
[1763563604300,2.48,137.49,137.48,0.2]
[1763563604514,8.60783519,137.49,137.48,0.2]
[1763563605223,2.48,137.49,137.48,0.2]
[1763563605396,1.99999999,137.57,137.48,0.2]
[1763563605397,6.12783519,137.52,137.48,0.2]
[1763563605720,6.12783519,137.51,137.48,0.2]
[1763563606019,1.78,137.52,137.48,0.2]
[1763563606202,7.90783519,137.52,137.48,7.47376187]
[1763563606394,1.78,137.52,137.49,6.77783519]
[1763563606597,1.78,137.52,137.49,0.65]
[1763563606800,7.90783519,137.52,137.48,0.2]
[1763563607001,8.60783519,137.52,137.48,0.2]
[1763563607201,7.90783519,137.52,137.48,0.2]
[1763563607403,7.90783519,137.52,137.48,7.47358484]
[1763563607404,1.78,137.52,137.48,7.47358484]
[1763563607620,6.12783519,137.56,137.5,6.12783519]
[1763563607824,1.78,137.55,137.5,6.12783519]
[1763563608122,1.78,137.55,137.51,6.12783519]
[1763563608420,7.90783519,137.56,137.51,6.12783519]
[1763563608625,6.12783519,137.54,137.49,18.12096]
[1763563608832,0.7,137.55,137.48,0.2]
[1763563609122,6.12783519,137.51,137.48,0.2]
[1763563609335,7.90783519,137.51,137.48,0.2]
[1763563610094,6.12783519,137.49,137.48,0.2]
[1763563610608,6.82783519,137.49,137.48,0.2]
[1763563611521,1.78,137.5,137.48,0.2]
[1763563611697,7.90783519,137.5,137.48,0.2]
[1763563611904,1.78,137.5,137.48,0.2]
[1763563612400,6.12783519,137.51,137.48,0.2]
[1763563612627,1.78,137.5,137.48,0.2]
[1763563613423,7.90783519,137.5,137.48,0.2]
[1763563613624,8.60783519,137.5,137.48,0.2]
[1763563613830,7.90783519,137.5,137.48,0.2]
[1763563614120,6.12783519,137.49,137.48,0.2]
[1763563614327,7.90783519,137.5,137.48,0.2]
[1763563614929,1.78,137.54,137.48,14.3013634]
[1763563615108,7.90783519,137.54,137.48,14.3013634]
[1763563615303,6.12783519,137.53,137.48,14.3013634]
[1763563615708,6.12783519,137.52,137.48,0.2]
[1763563616431,0.7,137.53,137.48,18.32096]
[1763563616432,6.12783519,137.51,137.48,18.32096]
[1763563616610,6.12783519,137.52,137.48,18.32096]
[1763563616810,6.12783519,137.52,137.48,0.2]
[1763563617126,6.82783519,137.51,137.48,0.2]
[1763563617629,6.12783519,137.51,137.48,18.32096]
[1763563617810,6.12783519,137.52,137.48,18.32096]
[1763563618125,6.12783519,137.51,137.48,0.2]
[1763563618301,6.12783519,137.49,137.48,0.2]
[1763563618506,7.90783519,137.49,137.48,0.2]
[1763563618725,8.60783519,137.49,137.48,0.2]
[1763563618923,1.78,137.49,137.48,0.2]
[1763563620132,27.90978769,137.54,137.48,0.2]
[1763563620133,6.12783519,137.52,137.48,0.9]
[1763563620431,1.78,137.51,137.48,0.2]
[1763563620600,1.78,137.5,137.48,0.2]
[1763563622231,6.82783519,137.49,137.48,0.2]
[1763563622432,1.78,137.5,137.48,0.2]
[1763563622822,8.60783519,137.49,137.48,0.2]
[1763563623614,6.12783519,137.5,137.48,0.2]
[1763563623816,6.12783519,137.54,137.48,7.02783519]
[1763563624035,1.78,137.53,137.49,6.12783519]
[1763563624518,6.12783519,137.51,137.48,0.2]
[1763563624720,6.12783519,137.49,137.48,0.2]
[1763563625044,6.12783519,137.5,137.48,0.2]
[1763563625256,0.7,137.56,137.49,6.12783519]
[1763563625408,7.90783519,137.55,137.49,6.12783519]
[1763563625608,6.12783519,137.54,137.49,6.12783519]
[1763563625836,6.12783519,137.53,137.48,18.32096]
[1763563626046,6.12783519,137.5,137.48,0.2]
[1763563626220,1.78,137.5,137.48,0.2]
[1763563626412,1.78,137.51,137.48,7.02783519]
[1763563626930,7.90783519,137.51,137.48,0.2]
[1763563627113,6.12783519,137.54,137.48,6.32783519]
[1763563627311,6.12783519,137.55,137.49,6.82783519]
[1763563627512,0.7,137.56,137.49,0.7]
[1763563627513,7.90783519,137.54,137.49,0.7]
[1763563627735,1.78,137.54,137.49,6.82783519]
[1763563628142,0.7,137.56,137.51,6.12783519]
[1763563628347,0.7,137.63,137.52,0.7]
[1763563628545,0.1,137.65,137.57,18.12096]
[1763563628719,6.12783519,137.61,137.57,18.12096]
[1763563628912,0.7,137.63,137.55,18.12096]
[1763563629119,0.7,137.63,137.55,24.94879519]
[1763563629339,6.12783519,137.61,137.55,24.94879519]
[1763563629537,0.7,137.63,137.55,24.94879519]
[1763563629846,6.12783519,137.61,137.55,24.94879519]
[1763563630042,6.12783519,137.6,137.55,18.82096]
[1763563630222,1.78,137.6,137.55,24.94879519]
[1763563630417,6.12783519,137.61,137.56,7.96940059]
[1763563630618,0.7,137.62,137.56,0.7]
[1763563630819,1.78,137.61,137.57,6.82783519]
[1763563631021,1.78,137.63,137.58,6.12783519]
[1763563631238,7.90783519,137.63,137.58,6.82783519]
[1763563631423,1.78,137.63,137.59,6.12783519]
[1763563631651,1.78,137.63,137.57,6.12783519]
[1763563631652,7.90783519,137.63,137.57,6.12783519]
[1763563631960,1.78,137.63,137.59,6.12783519]
[1763563632126,0.1,137.65,137.61,6.12783519]
[1763563632330,0.1,137.65,137.64,6.12783519]
[1763563632663,0.1,137.65,137.64,13.39316503]
[1763563632837,0.1,137.65,137.64,6.82783519]
[1763563633519,0.1,137.65,137.64,16.61666288]
[1763563633936,0.8,137.65,137.64,9.78882769]
[1763563634145,0.8,137.65,137.48,36.72545569]
[1763563634146,8.70783519,137.65,137.58,0.7]
[1763563634348,1.88,137.65,137.59,6.12783519]
[1763563634562,1.88,137.65,137.6,6.12783519]
[1763563634725,0.1,137.65,137.61,6.12783519]
[1763563634925,0.1,137.65,137.64,6.12783519]
[1763563635142,0.1,137.65,137.61,18.12096]
[1763563635143,0.1,137.65,137.63,6.12783519]
[1763563635357,0.1,137.65,137.64,6.82783519]
[1763563635530,0.1,137.65,137.64,0.7]
[1763563635744,0.1,137.65,137.64,6.82783519]
[1763563635931,6.12783519,137.73,137.65,6.12783519]
[1763563636254,6.12783519,137.72,137.67,6.12783519]
[1763563636552,6.12783519,137.7,137.64,0.7]
[1763563636765,6.12783519,137.7,137.64,6.82783519]
[1763563636933,6.12783519,137.65,137.57,9.78882769]
[1763563637135,6.12783519,137.65,137.38,19.2760883]
[1763563637136,1.99999999,137.44,137.31,0.42465141]
[1763563637446,1.99999999,137.41,137.37,0.7]
[1763563637663,5.80556618,137.42,137.37,0.7]
[1763563637839,5.40054075,137.41,137.38,6.12783519]
[1763563638154,5.40054075,137.4,137.39,0.7]
[1763563638355,5.40054075,137.4,137.37,6.12783519]
[1763563638557,5.40054075,137.39,137.37,6.12783519]
[1763563638739,5.40054075,137.38,137.36,6.12783519]
[1763563638948,1.99999999,137.39,137.37,5.37149049]
[1763563639251,1.99999999,137.39,137.38,5.37149049]
[1763563639457,9.93340138,137.42,137.38,5.37149049]
[1763563639458,1.99999999,137.4,137.38,5.37149049]
[1763563639669,1.99999999,137.4,137.39,5.37149049]
[1763563639960,1.99999999,137.4,137.35,24.24879519]
[1763563640135,1.99999999,137.4,137.35,6.12783519]
[1763563640337,3.80556619,137.42,137.39,6.12783519]
[1763563640569,3.80556619,137.42,137.4,6.12783519]
[1763563640751,1.99999999,137.4,137.35,0.68]
[1763563641144,5.80556618,137.42,137.37,6.12783519]
[1763563641342,3.80556619,137.42,137.39,6.12783519]
[1763563641566,5.80556618,137.42,137.38,6.80783519]
[1763563641744,3.80556619,137.42,137.39,6.12783519]
[1763563641949,3.80556619,137.42,137.38,0.68]
[1763563641950,2.36556619,137.42,137.41,24.24879519]
[1763563642150,1.60556619,137.42,137.41,18.12096]
[1763563642458,1.60556619,137.42,137.41,25.39845072]
[1763563642658,1.60556619,137.42,137.41,31.52628591]
[1763563643169,1.60556619,137.42,137.41,13.40532591]
[1763563643350,1.99999999,137.47,137.44,18.12096]
[1763563643964,1.99999999,137.48,137.44,18.12096]
[1763563644143,1.99999999,137.47,137.43,24.24879519]
[1763563644961,1.82,137.52,137.45,6.12783519]
[1763563644962,1.99999999,137.48,137.45,6.12783519]
[1763563645164,1.99999999,137.51,137.47,6.12783519]
[1763563645354,1.99999999,137.53,137.48,1.82]
[1763563645776,1.99999999,137.54,137.51,6.12783519]
[1763563645972,1.99999999,137.55,137.51,6.12783519]
[1763563646158,1.99999999,137.53,137.46,18.12096]
[1763563646365,1.99999999,137.53,137.49,6.12783519]
[1763563646546,1.99999999,137.52,137.47,1.82]
[1763563646753,1.99999999,137.52,137.48,6.12783519]
[1763563646939,2.69999999,137.52,137.48,6.12783519]
[1763563647269,1.99999999,137.52,137.47,6.12783519]
[1763563647477,1.99999999,137.47,137.42,7.27692689]
[1763563647646,1.99999999,137.47,137.43,7.94783519]
[1763563647845,1.99999999,137.47,137.44,6.12783519]
[1763563648138,1.99999999,137.49,137.44,6.12783519]
[1763563648343,1.99999999,137.48,137.44,6.12783519]
[1763563648544,1.99999999,137.47,137.44,6.12783519]
[1763563648775,1.99999999,137.48,137.43,19.94096]
[1763563648974,1.99999999,137.45,137.39,7.27855011]
[1763563649179,1.99999999,137.45,137.41,7.94783519]
[1763563649472,1.99999999,137.45,137.41,26.06879519]
[1763563649886,1.99999999,137.45,137.42,6.12783519]
[1763563650074,1.99999999,137.47,137.43,6.12783519]
[1763563650365,1.99999999,137.47,137.44,7.94783519]
[1763563650567,1.99999999,137.48,137.45,6.12783519]
[1763563650882,1.99999999,137.47,137.44,26.06879519]
[1763563651041,2.69999999,137.47,137.42,24.24879519]
[1763563651240,1.99999999,137.46,137.43,7.92783519]
[1763563651681,1.99999999,137.44,137.36,7.28013977]
[1763563651880,1.99999999,137.44,137.4,6.12783519]
[1763563652187,1.99999999,137.44,137.41,7.92783519]
[1763563652481,1.99999999,137.46,137.42,6.12783519]
[1763563652680,1.99999999,137.47,137.44,6.12783519]
[1763563652866,1.99999999,137.46,137.45,1.8]
[1763563653067,1.99999999,137.5,137.45,7.92783519]
[1763563653390,1.99999999,137.53,137.49,6.12783519]
[1763563653580,1.99999999,137.52,137.5,1.8]
[1763563653963,0.7,137.52,137.5,7.92783519]
[1763563654277,1.99999999,137.53,137.51,6.12783519]
[1763563654481,0.7,137.56,137.52,6.12783519]
[1763563654684,0.7,137.56,137.5,19.92096]
[1763563654685,0.7,137.55,137.54,6.12783519]
[1763563654858,2.69999999,137.55,137.54,6.12783519]
[1763563655060,11.78882768,137.57,137.54,6.12783519]
[1763563655358,12.48882768,137.57,137.54,6.12783519]
[1763563655567,1.99999999,137.55,137.53,1.8]
[1763563655772,1.99999999,137.6,137.54,6.12783519]
[1763563655978,11.78882768,137.6,137.58,6.12783519]
[1763563656167,11.78882768,137.59,137.58,1.8]
[1763563656373,12.48882768,137.59,137.55,18.12096]
[1763563656684,11.78882768,137.55,137.54,1.8]
[1763563656886,1.99999999,137.55,137.54,1.8]
[1763563657188,1.99999999,137.56,137.54,7.92783519]
[1763563657482,1.99999999,137.57,137.55,6.12783519]
[1763563657689,2.69999999,137.58,137.56,6.12783519]
[1763563657880,2.69999999,137.58,137.57,1.8]
[1763563658594,1.99999999,137.56,137.55,6.12783519]
[1763563658901,1.99999999,137.54,137.51,18.12096]
[1763563659063,1.99999999,137.54,137.52,6.12783519]
[1763563659388,1.99999999,137.53,137.51,6.12783519]
[1763563659565,1.99999999,137.53,137.52,7.92783519]
[1763563659767,1.99999999,137.54,137.52,7.92783519]
[1763563659971,2.69999999,137.55,137.52,1.8]
[1763563660163,2.69999999,137.55,137.53,6.12783519]
[1763563660364,1.99999999,137.53,137.52,7.92783519]
[1763563660795,1.99999999,137.54,137.52,1.8]
[1763563660998,2.69999999,137.53,137.5,10.23494286]
[1763563661298,2.69999999,137.53,137.49,10.23494286]
[1763563661594,1.99999999,137.51,137.5,1.8]
[1763563661966,2.69999999,137.55,137.5,12.03494286]
[1763563662172,1.99999999,137.55,137.53,10.23494286]
[1763563662374,1.99999999,137.55,137.54,1.8]
[1763563662577,2.69999999,137.55,137.54,1.8]
[1763563662866,2.69999999,137.55,137.52,1.8]
[1763563662867,1.99999999,137.53,137.52,1.8]
[1763563663189,2.69999999,137.55,137.52,12.03494286]
[1763563663385,1.99999999,137.53,137.52,1.8]
[1763563663599,1.99999999,137.47,137.3,50.0]
[1763563663769,1.99999999,137.47,137.44,10.23494286]
[1763563663968,10.93494286,137.49,137.45,10.23494286]
[1763563663969,1.99999999,137.48,137.45,10.23494286]
[1763563664193,2.69999999,137.49,137.46,1.8]
[1763563664496,2.69999999,137.49,137.46,12.03494286]
[1763563664695,2.69999999,137.49,137.46,1.8]
[1763563665263,1.99999999,137.49,137.46,19.30978499]
[1763563665692,1.99999999,137.5,137.47,10.23494286]
[1763563665874,2.21865376,137.52,137.49,10.23494286]
[1763563666073,1.99999999,137.51,137.5,1.8]
[1763563666292,2.21865376,137.52,137.5,1.8]
[1763563666819,1.99999999,137.51,137.5,1.8]
[1763563667124,2.91865376,137.52,137.5,1.8]
[1763563667295,0.21865377,137.52,137.5,12.03494286]
[1763563668206,2.21865376,137.52,137.5,12.03494286]
[1763563668403,2.21865376,137.52,137.5,10.23494286]
[1763563668593,2.91865376,137.52,137.51,1.8]
[1763563669032,0.91865377,137.52,137.51,1.8]
[1763563669224,1.99999999,137.5,137.47,10.23494286]
[1763563669406,1.99999999,137.5,137.48,1.8]
[1763563669603,2.69999999,137.5,137.48,1.8]
[1763563669808,10.23494286,137.52,137.37,9.78882769]
[1763563669809,1.99999999,137.48,137.37,9.78882769]
[1763563670127,1.99999999,137.48,137.44,10.23494286]
[1763563670438,1.99999999,137.49,137.46,10.23494286]
[1763563670626,1.99999999,137.48,137.46,10.23494286]
[1763563670791,1.99999999,137.49,137.46,10.23494286]
[1763563670995,1.99999999,137.51,137.48,10.23494286]
[1763563671213,2.71999999,137.51,137.49,12.03494286]
[1763563671409,2.71999999,137.51,137.49,1.8]
[1763563672227,1.99999999,137.51,137.49,12.03494286]
[1763563672902,0.72,137.5,137.49,1.8]
[1763563673103,2.71999999,137.51,137.49,1.8]
[1763563673494,0.72,137.5,137.48,10.23494286]
[1763563673710,2.71999999,137.5,137.41,46.17408982]
[1763563673925,1.99999999,137.49,137.47,10.23494286]
[1763563674142,2.71999999,137.49,137.45,10.23494286]
[1763563674302,1.99999999,137.46,137.45,1.8]
[1763563674726,2.71999999,137.46,137.45,19.92096]
[1763563675615,2.71999999,137.46,137.45,1.8]
[1763563675939,1.99999999,137.48,137.45,19.31031572]
[1763563676105,1.99999999,137.5,137.48,18.12096]
[1763563676302,10.95494286,137.52,137.48,18.12096]
[1763563676303,1.99999999,137.49,137.48,18.12096]
[1763563676516,1.99999999,137.49,137.48,19.92096]
[1763563676713,2.71999999,137.49,137.48,1.8]
[1763563677507,2.71999999,137.49,137.48,19.92096]
[1763563678404,1.99999999,137.5,137.49,18.12096]
[1763563679154,1.99999999,137.5,137.49,10.23494286]
[1763563679625,1.99999999,137.5,137.48,37.42964762]
[1763563679837,1.99999999,137.5,137.48,30.15590286]
[1763563680146,2.71999999,137.52,137.5,18.12096]
[1763563680307,12.95494285,137.52,137.5,18.12096]
[1763563680506,1.99999999,137.49,137.48,1.8]
[1763563680837,1.99999999,137.51,137.48,12.03494286]
[1763563681047,1.99999999,137.56,137.5,10.23494286]
[1763563681219,1.99999999,137.54,137.53,10.23494286]
[1763563681529,1.99999999,137.54,137.42,0.68]
[1763563681530,12.23494285,137.54,137.42,0.68]
[1763563681752,1.99999999,137.48,137.45,10.23494286]
[1763563681960,1.99999999,137.48,137.46,1.8]
[1763563682118,1.99999999,137.47,137.44,10.23494286]
[1763563682318,2.71999999,137.47,137.45,1.8]
[1763563682543,1.99999999,137.46,137.45,1.8]
[1763563682747,1.99999999,137.48,137.46,18.12096]
[1763563683123,0.72,137.49,137.46,18.12096]
[1763563683124,2.71999999,137.49,137.47,18.12096]
[1763563683441,1.99999999,137.48,137.47,18.12096]
[1763563683844,1.99999999,137.51,137.48,18.12096]
[1763563684026,1.99999999,137.51,137.49,1.8]
[1763563684350,1.99999999,137.51,137.5,10.23494286]
[1763563684748,1.99999999,137.53,137.52,18.12096]
[1763563684931,1.99999999,137.54,137.52,12.03494286]
[1763563685244,1.99999999,137.58,137.56,18.12096]
[1763563685542,2.71999999,137.6,137.57,1.8]
[1763563685723,1.99999999,137.58,137.57,1.8]
[1763563685921,12.23494285,137.58,137.48,1.40737852]
[1763563686120,1.99999999,137.55,137.5,18.12096]
[1763563686425,1.99999999,137.55,137.54,10.23494286]
[1763563686642,1.99999999,137.55,137.54,12.03494286]
[1763563686944,1.99999999,137.55,137.53,18.12096]
[1763563686945,1.99999999,137.54,137.53,18.12096]
[1763563687146,1.99999999,137.52,137.5,10.23494286]
[1763563687446,1.99999999,137.51,137.5,1.8]
[1763563687754,1.99999999,137.54,137.53,18.12096]
[1763563688053,1.99999999,137.54,137.53,30.15590286]
[1763563688553,1.99999999,137.54,137.53,1.8]
[1763563688731,1.99999999,137.55,137.53,1.8]
[1763563688921,1.99999999,137.54,137.53,1.8]
[1763563689241,1.99999999,137.55,137.53,12.03494286]
[1763563689661,1.99999999,137.56,137.54,10.23494286]
[1763563690272,1.99999999,137.56,137.55,10.23494286]
[1763563690422,2.09999999,137.61,137.55,10.23494286]
[1763563690623,1.99999999,137.58,137.57,10.23494286]
[1763563690839,2.81999999,137.61,137.57,10.23494286]
[1763563691044,2.81999999,137.61,137.57,17.50395518]
[1763563691255,2.71999999,137.6,137.56,12.03494286]
[1763563691563,2.71999999,137.6,137.57,28.35590286]
[1763563691737,1.99999999,137.59,137.57,28.35590286]
[1763563691944,1.99999999,137.59,137.5,0.68]
[1763563691945,2.71999999,137.58,137.5,0.68]
[1763563692129,1.99999999,137.57,137.55,28.35590286]
[1763563692328,1.99999999,137.57,137.56,1.8]
[1763563692866,1.99999999,137.59,137.56,12.03494286]
[1763563693030,1.99999999,137.58,137.56,12.03494286]
[1763563693376,1.99999999,137.55,137.5,7.27232819]
[1763563693668,10.96210981,137.57,137.51,12.03494286]
[1763563693669,1.99999999,137.53,137.51,12.03494286]
[1763563693828,1.99999999,137.53,137.41,0.72774907]
[1763563693829,10.23494286,137.52,137.44,0.68]
[1763563694028,1.99999999,137.51,137.47,10.23494286]
[1763563694324,1.99999999,137.5,137.48,1.8]
[1763563694524,1.99999999,137.5,137.49,18.12096]
[1763563694754,1.99999999,137.51,137.49,28.35590286]
[1763563694950,1.99999999,137.55,137.5,10.91494286]
[1763563695135,1.99999999,137.53,137.52,28.35590286]
[1763563695337,1.99999999,137.53,137.52,18.12096]
[1763563695957,1.99999999,137.58,137.52,29.03590286]
[1763563696259,1.99999999,137.6,137.57,10.23494286]
[1763563696443,2.09999999,137.61,137.59,10.23494286]
[1763563696759,0.1,137.61,137.6,1.8]
[1763563696943,2.09999999,137.61,137.6,12.03494286]
[1763563697143,0.1,137.61,137.6,1.8]
[1763563697341,2.09999999,137.61,137.6,1.8]
[1763563697864,2.09999999,137.61,137.6,12.03494286]
[1763563698065,2.09999999,137.61,137.6,1.8]
[1763563698274,1.99999999,137.6,137.55,18.12096]
[1763563698477,1.99999999,137.58,137.57,18.12096]
[1763563698846,23.47093749,137.58,137.57,18.12096]
[1763563699167,1.99999999,137.57,137.56,1.8]
[1763563699687,2.71999999,137.57,137.56,1.8]
[1763563701578,13.6821098,137.57,137.56,1.8]
[1763563701875,13.6821098,137.57,137.5,18.84120305]
[1763563701876,1.99999999,137.53,137.42,36.38408472]
[1763563702077,12.23494285,137.53,137.49,10.23494286]
[1763563702290,12.23494285,137.51,137.43,25.46751072]
[1763563702571,10.51599464,137.57,137.43,25.46751072]
[1763563702572,1.99999999,137.49,137.46,10.23494286]
[1763563702744,1.99999999,137.49,137.48,18.12096]
[1763563703363,1.99999999,137.48,137.47,1.8]
[1763563703566,1.99999999,137.48,137.47,19.92096]
[1763563703734,10.60294285,137.51,137.47,1.8]
[1763563703937,10.23494286,137.5,137.47,1.8]
[1763563704252,6.00227086,137.5,137.47,19.92096]
[1763563704453,10.23494286,137.5,137.47,19.92096]
[1763563704657,10.23494286,137.5,137.47,1.8]
[1763563704843,18.12096,137.56,137.47,1.8]
[1763563704844,10.23494286,137.49,137.47,1.8]
[1763563705044,3.47445886,137.49,137.47,1.8]
[1763563705239,10.23494286,137.49,137.47,19.92096]
[1763563706253,10.23494286,137.5,137.47,19.92096]
[1763563706744,10.23494286,137.48,137.45,18.12096]
[1763563706949,10.23494286,137.48,137.46,19.92096]
[1763563707335,10.23494286,137.47,137.46,19.92096]
[1763563707538,0.71,137.52,137.46,19.92096]
[1763563707844,0.71,137.52,137.46,37.43070883]
[1763563707845,20.02377055,137.51,137.46,37.43070883]
[1763563708059,9.78882769,137.56,137.49,10.23494286]
[1763563708367,10.23494286,137.55,137.5,1.8]
[1763563708551,10.23494286,137.55,137.5,12.03494286]
[1763563708941,10.23494286,137.51,137.49,18.12096]
[1763563709268,9.78882769,137.53,137.5,1.8]
[1763563709269,10.23494286,137.52,137.5,1.8]
[1763563709480,10.94494286,137.52,137.5,1.8]
[1763563709882,9.78882769,137.53,137.5,1.8]
[1763563710159,1.8,137.57,137.5,1.8]
[1763563710160,10.23494286,137.55,137.51,18.12096]
[1763563710536,10.94494286,137.55,137.51,18.12096]
[1763563710759,10.23494286,137.56,137.51,28.35590286]
[1763563710949,10.23494286,137.54,137.5,1.8]
[1763563711858,0.71,137.55,137.5,1.8]
[1763563711859,10.94494286,137.53,137.5,1.8]
[1763563712162,0.71,137.53,137.5,1.8]
[1763563712373,9.78882769,137.52,137.51,1.78]
[1763563712557,20.02377055,137.54,137.51,1.78]
[1763563713039,20.02377055,137.56,137.51,12.01494286]
[1763563713463,0.1,137.61,137.52,0.65]
[1763563713665,10.23494286,137.57,137.48,9.78882769]
[1763563713842,9.78882769,137.6,137.52,18.12096]
[1763563714050,10.23494286,137.57,137.53,1.78]
[1763563714447,10.23494286,137.54,137.51,18.12096]
[1763563714667,0.71,137.56,137.42,0.65]
[1763563714668,10.23494286,137.53,137.52,1.78]
[1763563714851,20.02377055,137.53,137.52,1.78]
[1763563715268,9.78882769,137.53,137.52,1.78]
[1763563715447,9.78882769,137.52,137.43,7.27596521]
[1763563715648,10.23494286,137.5,137.4,9.78882769]
[1763563715951,10.23494286,137.5,137.45,28.35590286]
[1763563716757,9.78882769,137.5,137.45,28.35590286]
[1763563716965,9.78882769,137.52,137.46,10.23494286]
[1763563717154,9.78882769,137.52,137.48,10.23494286]
[1763563717663,9.78882769,137.52,137.48,18.12096]
[1763563717859,20.02377055,137.52,137.48,18.12096]
[1763563718178,9.78882769,137.51,137.48,18.12096]
[1763563718350,9.78882769,137.49,137.47,1.8]
[1763563718545,9.78882769,137.5,137.47,1.8]
[1763563718884,9.78882769,137.54,137.47,1.8]
[1763563719083,9.78882769,137.52,137.47,12.03494286]
[1763563719254,9.78882769,137.52,137.47,1.8]
[1763563719451,9.78882769,137.52,137.49,10.23494286]
[1763563719653,1.78,137.57,137.51,10.23494286]
[1763563719965,20.02377055,137.58,137.52,10.23494286]
[1763563720282,0.71,137.6,137.5,19.90096]
[1763563720283,20.02377055,137.59,137.54,10.23494286]
[1763563720484,0.71,137.58,137.54,10.23494286]
[1763563720655,9.78882769,137.57,137.54,10.23494286]
[1763563720962,9.78882769,137.54,137.47,0.65]
[1763563721172,9.78882769,137.54,137.5,28.35590286]
[1763563721374,10.23494286,137.55,137.49,10.23494286]
[1763563721563,9.78882769,137.54,137.49,10.23494286]
[1763563721973,10.49882769,137.54,137.49,10.23494286]
[1763563722170,10.49882769,137.54,137.49,28.35590286]
[1763563722554,9.78882769,137.52,137.49,28.35590286]
[1763563722781,9.78882769,137.52,137.49,24.24729367]
[1763563723196,9.78882769,137.52,137.49,18.12096]
[1763563723564,9.78882769,137.52,137.48,26.02729367]
[1763563723994,9.78882769,137.5,137.42,7.92675256]
[1763563724158,9.78882769,137.5,137.46,24.24729367]
[1763563724358,0.71,137.5,137.47,1.78]
[1763563725688,16.62516136,137.52,137.47,1.78]
[1763563725868,9.78882769,137.5,137.47,1.78]
[1763563726876,9.78882769,137.52,137.49,6.12633367]